[Event "HUN-ch U8-U18 2019"]
[Site "Balatonlelle"]
[Date "2019.06.21"]
[Round "1.10"]
[White "Szilagyi, Norbert"]
[Black "Bolyki, Istvan"]
[Result "1-0"]
[ECO "C54"]
[WhiteElo "2093"]
[BlackElo "1821"]
[Annotator "NA"]
[PlyCount "65"]
[EventDate "2019.06.21"]
[EventType "swiss"]
[EventCountry "HUN"]
[SourceTitle "playchess.com"]
[Source "ChessBase"]
[SourceQuality "1"]
[TimeControl "40/5400+30:1800+30"]

1. e4 {[%emt 0:00:03]} e5 {[%emt 0:00:02]} 2. Bc4 {[%emt 0:00:19]} Nc6 {[%emt 0:00:06]} 3. Nf3 {[%emt 0:00:10]} Bc5 {[%emt 0:00:07]} 4. c3 {[%emt 0:00:10]} Nf6 {[%emt 0:00:06]} 5. d3 {[%emt 0:00:06]} d6 {[%emt 0:00:13]} 6. Bb3 {[%emt 0:00:09]} Bb6 {[%emt 0:00:13]} 7. Nbd2 {[%emt 0:00:24]} Be6 {[%emt 0:00:31]} 8. Bc2 {[%emt 0:00:28]} a6 {[%emt 0:00:22]} 9. h3 {[%emt 0:00:43]} O-O {[%emt 0:00:11]} 10. Nf1 {[%emt 0:00:27]} h6 {[%emt 0:00:13]} 11. g4 {[%emt 0:01:31]} Nh7 {[%emt 0:00:40]} 12. Ng3 {[%emt 0:00:55]} Ne7 {[%emt 0:00:35]} 13. Nh4 {[%emt 0:15:19]} d5 {[%emt 0:03:08]} 14. Qe2 {[%emt 0:00:51]} dxe4 {[%emt 0:01:58]} 15. dxe4 {[%emt 0:00:23]} Qd6 {[%emt 0:03:11]} 16. Nhf5 {[%emt 0:08:26]} Nxf5 {[%emt 0:00:22]} 17. gxf5 {[%emt 0:01:25]} Bd7 {[%emt 0:00:35]} 18. Rg1 {[%emt 0:05:25]} Ng5 {[%emt 0:09:25]} 19. Bxg5 {[%emt 0:02:53]} hxg5 {[%emt 0:00:21]} 20. Rd1 {[%emt 0:10:54]} Bb5 {[%emt 0:06:34]} 21. Rxd6 {[%emt 0:02:59]} Bxe2 {[%emt 0:01:46]} 22. Rxb6 {[%emt 0:00:39]} cxb6 {[%emt 0:00:09]} 23. Nxe2 {[%emt 0:00:08]} f6 {[%emt 0:00:24]} 24. Bb3+ {[%emt 0:00:06]} Kh7 {[%emt 0:00:09]} 25. Bd5 {[%emt 0:01:38]} Rab8 {[%emt 0:01:42]} 26. Kd2 {[%emt 0:00:45]} b5 {[%emt 0:00:28]} 27. Ke3 {[%emt 0:00:50]} g6 {[%emt 0:00:47]} 28. Ng3 {[%emt 0:00:39]} b6 {[%emt 0:00:48]} 29. h4 {[%emt 0:02:47]} gxh4 {[%emt 0:00:43]} 30. fxg6+ {[%emt 0:00:05]} Kxg6 {[%emt 0:00:09]} 31. Nf5+ {[%emt 0:00:06]} Kh7 {[%emt 0:00:32]} 32. Rg7+ {[%emt 0:00:07]} Kh8 {[%emt 0:00:06]} 33. Rg6 {[%emt 0:00:05]} 1-0

[Event "HUN-ch U8-U18 2019"]
[Site "Balatonlelle"]
[Date "2019.06.21"]
[Round "1.11"]
[White "Varga, Boldizsar"]
[Black "Geher, Koppany"]
[Result "0-1"]
[ECO "D85"]
[WhiteElo "1804"]
[BlackElo "2089"]
[Annotator "NA"]
[PlyCount "98"]
[EventDate "2019.06.21"]
[EventType "swiss"]
[EventCountry "HUN"]
[SourceTitle "playchess.com"]
[Source "ChessBase"]
[SourceQuality "1"]
[TimeControl "40/5400+30:1800+30"]

1. d4 {[%emt 0:00:04]} Nf6 {[%emt 0:00:05]} 2. c4 {[%emt 0:00:12]} g6 {[%emt 0:00:05]} 3. Nc3 {[%emt 0:00:12]} d5 {[%emt 0:00:09]} 4. cxd5 {[%emt 0:00:07]} Nxd5 {[%emt 0:00:07]} 5. e4 {[%emt 0:00:11]} Nxc3 {[%emt 0:00:09]} 6. bxc3 {[%emt 0:00:02]} Bg7 {[%emt 0:00:10]} 7. Nf3 {[%emt 0:00:11]} c5 {[%emt 0:00:06]} 8. Be3 {[%emt 0:00:08]} Qa5 {[%emt 0:00:12]} 9. Qd2 {[%emt 0:00:23]} Nc6 {[%emt 0:00:10]} 10. Rb1 {[%emt 0:00:15]} a6 {[%emt 0:00:19]} 11. Rc1 {[%emt 0:00:32]} f5 {[%emt 0:00:40]} 12. Bd3 {[%emt 0:00:31]} cxd4 {[%emt 0:01:28]} 13. cxd4 {[%emt 0:00:41]} Qxd2+ {[%emt 0:00:25]} 14. Kxd2 {[%emt 0:00:38]} Rf8 {[%emt 0:06:06]} 15. g3 {[%emt 0:13:46]} Bd7 {[%emt 0:15:17]} 16. a3 {[%emt 0:04:06]} fxe4 {[%emt 0:08:58]} 17. Bxe4 {[%emt 0:00:08]} Na5 {[%emt 0:03:00]} 18. Rc2 {[%emt 0:14:35]} Bf5 {[%emt 0:25:17]} 19. Bxf5 {[%emt 0:08:53]} Rxf5 {[%emt 0:00:02]} 20. Ng5 {[%emt 0:00:40]} Bxd4 {[%emt 0:09:17]} 21. Bxd4 {[%emt 0:06:54]} Rxg5 {[%emt 0:00:19]} 22. Rb1 {[%emt 0:00:35]} Rd5 {[%emt 0:05:36]} 23. Ke3 {[%emt 0:01:06]} b5 {[%emt 0:00:21]} 24. Ke4 {[%emt 0:01:16]} Rd7 {[%emt 0:00:55]} 25. a4 {[%emt 0:06:33]} Nc4 {[%emt 0:00:37]} 26. Ra1 {[%emt 0:01:20]} Rad8 {[%emt 0:02:39]} 27. Bc3 {[%emt 0:05:06]} Rd1 {[%emt 0:01:39]} 28. Rxd1 {[%emt 0:01:26]} Rxd1 {[%emt 0:00:02]} 29. axb5 {[%emt 0:00:13]} axb5 {[%emt 0:00:07]} 30. Bb4 {[%emt 0:00:45]} Kd7 {[%emt 0:03:00]} 31. Kf4 {[%emt 0:02:02]} h6 {[%emt 0:01:04]} 32. Re2 {[%emt 0:01:04]} Rd4+ {[%emt 0:02:17]} 33. Kf3 {[%emt 0:01:34]} e5 {[%emt 0:01:11]} 34. Ra2 {[%emt 0:00:58]} Nd6 {[%emt 0:06:55]} 35. Ra7+ {[%emt 0:04:01]} Ke6 {[%emt 0:00:08]} 36. Bc5 {[%emt 0:02:30]} Rc4 {[%emt 0:01:04]} 37. Be3 {[%emt 0:01:24]} h5 {[%emt 0:05:21]} 38. Ra6 {[%emt 0:01:11]} Kd5 {[%emt 0:00:50]} 39. Rb6 {[%emt 0:02:19]} Rc6 {[%emt 0:01:55]} 40. Rb8 {[%emt 0:00:00]} Rc8 {[%emt 0:00:00]} 41. Rb6 {[%emt 0:00:48]} Rc6 {[%emt 0:02:03]} 42. Rb8 {[%emt 0:00:35]} Rc7 {[%emt 0:01:32]} 43. Ke2 {[%emt 0:01:36]} Rb7 {[%emt 0:01:32]} 44. Rd8 {[%emt 0:00:43]} b4 {[%emt 0:01:06]} 45. Kd2 {[%emt 0:02:19]} b3 {[%emt 0:00:52]} 46. Kc1 {[%emt 0:00:26]} b2+ {[%emt 0:01:44]} 47. Kb1 {[%emt 0:00:04]} Ke6 {[%emt 0:00:56]} 48. Bd2 {[%emt 0:02:20]} Nc4 {[%emt 0:00:12]} 49. Rd3 e4 {[%emt 0:00:31]} 0-1

[Event "HUN-ch U8-U18 2019"]
[Site "Balatonlelle"]
[Date "2019.06.21"]
[Round "1.11"]
[White "Vegh, Benedek"]
[Black "Fule, Simon"]
[Result "0-1"]
[ECO "A10"]
[WhiteElo "1626"]
[BlackElo "2148"]
[Annotator "NA"]
[PlyCount "72"]
[EventDate "2019.06.21"]
[EventType "swiss"]
[EventCountry "HUN"]
[SourceTitle "playchess.com"]
[Source "ChessBase"]
[SourceQuality "1"]
[TimeControl "40/5400+30:1800+30"]

1. c4 {[%emt 0:00:04]} d6 {[%emt 0:00:19]} 2. g3 {[%emt 0:00:37]} g6 {[%emt 0:00:41]} 3. Bg2 {[%emt 0:00:37]} Bg7 {[%emt 0:00:07]} 4. Nf3 {[%emt 0:00:44]} e5 {[%emt 0:01:01]} 5. Nc3 {[%emt 0:00:58]} Nc6 {[%emt 0:02:51]} 6. d3 {[%emt 0:01:37]} f5 {[%emt 0:03:14]} 7. Qc2 {[%emt 0:04:15]} Nf6 {[%emt 0:01:36]} 8. e4 {[%emt 0:03:46]} O-O {[%emt 0:02:34]} 9. b3 {[%emt 0:02:56]} a5 {[%emt 0:10:44]} 10. Bb2 {[%emt 0:01:42]} Nb4 {[%emt 0:07:37]} 11. Qd2 {[%emt 0:01:36]} c6 {[%emt 0:01:07]} 12. a3 {[%emt 0:07:42]} Na6 {[%emt 0:00:21]} 13. b4 {[%emt 0:05:06]} Be6 {[%emt 0:04:51]} 14. b5 {[%emt 0:06:51]} Nc5 {[%emt 0:00:31]} 15. Qc2 {[%emt 0:00:42]} fxe4 {[%emt 0:14:18]} 16. Nxe4 {[%emt 0:03:27]} Ncxe4 {[%emt 0:00:12]} 17. dxe4 {[%emt 0:00:49]} cxb5 {[%emt 0:00:11]} 18. cxb5 {[%emt 0:00:51]} Rc8 {[%emt 0:00:07]} 19. Qd2 {[%emt 0:08:26]} Nxe4 {[%emt 0:01:16]} 20. Qe3 {[%emt 0:06:13]} Nc5 {[%emt 0:04:54]} 21. Nd2 {[%emt 0:05:37]} Bh6 {[%emt 0:02:20]} 22. Qe2 {[%emt 0:03:24]} Bxd2+ {[%emt 0:01:30]} 23. Qxd2 {[%emt 0:01:40]} Nb3 {[%emt 0:00:08]} 24. Qe3 {[%emt 0:02:05]} Nxa1 {[%emt 0:00:17]} 25. Bxa1 {[%emt 0:00:31]} Rc5 {[%emt 0:05:01]} 26. a4 {[%emt 0:04:06]} Qc7 {[%emt 0:10:47]} 27. O-O {[%emt 0:01:54]} Rc4 {[%emt 0:05:06]} 28. Qa3 {[%emt 0:02:45]} Qc5 {[%emt 0:02:29]} 29. Qxc5 {[%emt 0:04:10]} Rxc5 {[%emt 0:00:08]} 30. Rd1 {[%emt 0:01:46]} Bb3 {[%emt 0:00:29]} 31. Rb1 {[%emt 0:02:52]} Bxa4 {[%emt 0:00:10]} 32. Bxb7 {[%emt 0:03:02]} Rxb5 {[%emt 0:00:49]} 33. Rxb5 {[%emt 0:00:21]} Bxb5 {[%emt 0:00:07]} 34. Bb2 {[%emt 0:02:17]} Kf7 {[%emt 0:00:17]} 35. Ba3 {[%emt 0:00:50]} Ke6 {[%emt 0:00:11]} 36. f3 {[%emt 0:01:34]} Bc4 {[%emt 0:00:17]} 0-1

[Event "HUN-ch U8-U18 2019"]
[Site "Balatonlelle"]
[Date "2019.06.21"]
[Round "1.12"]
[White "Kozsik, Bende Barnabas"]
[Black "Szoke, Kristof"]
[Result "1-0"]
[ECO "C24"]
[WhiteElo "2089"]
[BlackElo "1583"]
[Annotator "NA"]
[PlyCount "55"]
[EventDate "2019.06.21"]
[EventType "swiss"]
[EventCountry "HUN"]
[SourceTitle "playchess.com"]
[Source "ChessBase"]
[SourceQuality "1"]
[TimeControl "40/5400+30:1800+30"]

1. e4 {[%emt 0:00:06]} e5 {[%emt 0:00:10]} 2. Bc4 {[%emt 0:00:28]} Nf6 {[%emt 0:00:37]} 3. d3 {[%emt 0:00:08]} Nc6 {[%emt 0:00:28]} 4. Nc3 {[%emt 0:00:33]} Bc5 {[%emt 0:00:53]} 5. Bg5 {[%emt 0:07:22]} h6 {[%emt 0:01:24]} 6. Bh4 {[%emt 0:01:17]} d6 {[%emt 0:02:27]} 7. h3 {[%emt 0:09:55]} Be6 {[%emt 0:03:37]} 8. Bb3 {[%emt 0:01:21]} Nd4 {[%emt 0:07:48]} 9. Nge2 {[%emt 0:03:30]} O-O {[%emt 0:01:34]} 10. Bg3 {[%emt 0:08:44]} Bxb3 {[%emt 0:04:58]} 11. axb3 {[%emt 0:00:38]} Nh5 {[%emt 0:02:13]} 12. O-O {[%emt 0:04:49]} Qg5 {[%emt 0:06:50]} 13. Kh2 {[%emt 0:02:26]} Nxg3 {[%emt 0:04:46]} 14. Nxg3 {[%emt 0:01:12]} f5 {[%emt 0:01:11]} 15. exf5 {[%emt 0:01:58]} Nxf5 {[%emt 0:00:18]} 16. Nge4 {[%emt 0:03:27]} Qg6 {[%emt 0:02:06]} 17. Nxc5 {[%emt 0:02:43]} Nh4 {[%emt 0:02:12]} 18. Qg4 {[%emt 0:02:08]} Qxg4 {[%emt 0:00:31]} 19. hxg4 {[%emt 0:00:06]} dxc5 {[%emt 0:00:08]} 20. Ne4 {[%emt 0:05:24]} b6 {[%emt 0:00:58]} 21. Ra6 {[%emt 0:00:28]} Rf7 {[%emt 0:01:38]} 22. Rfa1 {[%emt 0:00:06]} c6 {[%emt 0:00:14]} 23. Rxb6 {[%emt 0:00:32]} axb6 {[%emt 0:00:22]} 24. Rxa8+ {[%emt 0:00:06]} Kh7 {[%emt 0:00:29]} 25. Rc8 {[%emt 0:00:25]} b5 {[%emt 0:02:04]} 26. Rxc6 {[%emt 0:00:22]} c4 {[%emt 0:00:18]} 27. bxc4 {[%emt 0:00:09]} bxc4 {[%emt 0:00:08]} 28. Rxc4 {[%emt 0:00:06]} 1-0

[Event "HUN-ch U8-U18 2019"]
[Site "Balatonlelle"]
[Date "2019.06.21"]
[Round "1.12"]
[White "Palczert, Botond"]
[Black "Blahota, Marcell"]
[Result "1/2-1/2"]
[ECO "B13"]
[WhiteElo "2068"]
[BlackElo "1793"]
[Annotator "NA"]
[PlyCount "58"]
[EventDate "2019.06.21"]
[EventType "swiss"]
[EventCountry "HUN"]
[SourceTitle "playchess.com"]
[Source "ChessBase"]
[SourceQuality "1"]
[TimeControl "40/5400+30:1800+30"]

1. e4 {[%emt 0:00:11]} c6 {[%emt 0:00:37]} 2. d4 {[%emt 0:00:23]} d5 {[%emt 0:00:22]} 3. exd5 {[%emt 0:00:09]} cxd5 {[%emt 0:00:21]} 4. Bd3 {[%emt 0:00:20]} Nf6 {[%emt 0:00:40]} 5. h3 {[%emt 0:00:27]} Nc6 {[%emt 0:01:15]} 6. c3 {[%emt 0:00:03]} a6 {[%emt 0:02:51]} 7. Nf3 {[%emt 0:00:32]} e6 {[%emt 0:07:12]} 8. O-O {[%emt 0:01:02]} Be7 {[%emt 0:00:15]} 9. Bf4 {[%emt 0:02:13]} b5 {[%emt 0:01:52]} 10. Nbd2 {[%emt 0:01:41]} O-O {[%emt 0:00:30]} 11. Ne5 {[%emt 0:04:36]} Bb7 {[%emt 0:03:02]} 12. Ndf3 {[%emt 0:04:00]} b4 {[%emt 0:11:35]} 13. Rc1 {[%emt 0:04:26]} Rc8 {[%emt 0:01:48]} 14. Nxc6 {[%emt 0:19:44]} Rxc6 {[%emt 0:02:51]} 15. cxb4 {[%emt 0:02:03]} Rxc1 {[%emt 0:05:42]} 16. Qxc1 {[%emt 0:00:02]} Bxb4 {[%emt 0:00:16]} 17. Qe3 {[%emt 0:14:04]} Qb6 {[%emt 0:05:33]} 18. Rc1 {[%emt 0:06:08]} Rc8 {[%emt 0:07:33]} 19. Rxc8+ {[%emt 0:02:05]} Bxc8 {[%emt 0:01:03]} 20. Qc1 {[%emt 0:00:16]} Qb7 {[%emt 0:07:21]} 21. Qc2 {[%emt 0:04:34]} h6 {[%emt 0:02:40]} 22. Qa4 {[%emt 0:01:46]} Be7 {[%emt 0:05:18]} 23. b3 {[%emt 0:06:45]} Qd7 {[%emt 0:07:53]} 24. Qa5 {[%emt 0:04:08]} Qb7 {[%emt 0:06:37]} 25. Ne5 {[%emt 0:01:15]} Ne8 {[%emt 0:08:53]} 26. Qa4 {[%emt 0:07:58]} Nd6 {[%emt 0:02:24]} 27. Nc6 {[%emt 0:01:37]} Bf8 {[%emt 0:00:33]} 28. Nd8 {[%emt 0:02:44]} Qb6 {[%emt 0:01:40]} 29. Bxd6 {[%emt 0:00:19]} Qxd6 {[%emt 0:00:21]} 1/2-1/2

[Event "HUN-ch U8-U18 2019"]
[Site "Balatonlelle"]
[Date "2019.06.21"]
[Round "1.13"]
[White "Kaloczi, Kristof"]
[Black "Papp, Levente"]
[Result "0-1"]
[ECO "C06"]
[WhiteElo "2098"]
[BlackElo "2350"]
[Annotator "NA"]
[PlyCount "80"]
[EventDate "2019.06.21"]
[EventType "swiss"]
[EventCountry "HUN"]
[SourceTitle "playchess.com"]
[Source "ChessBase"]
[SourceQuality "1"]
[TimeControl "40/5400+30:1800+30"]

1. e4 {[%emt 0:00:02]} e6 {[%emt 0:00:10]} 2. d4 {[%emt 0:00:08]} d5 {[%emt 0:00:05]} 3. Nd2 {[%emt 0:00:06]} Nf6 {[%emt 0:00:26]} 4. e5 {[%emt 0:00:15]} Nfd7 {[%emt 0:00:04]} 5. Bd3 {[%emt 0:00:17]} c5 {[%emt 0:00:06]} 6. c3 {[%emt 0:00:06]} Nc6 {[%emt 0:00:03]} 7. Ne2 {[%emt 0:00:12]} cxd4 {[%emt 0:00:06]} 8. cxd4 {[%emt 0:00:04]} f6 {[%emt 0:00:04]} 9. exf6 {[%emt 0:01:33]} Nxf6 {[%emt 0:00:06]} 10. Nf3 {[%emt 0:00:15]} Bd6 {[%emt 0:00:05]} 11. O-O {[%emt 0:00:25]} O-O {[%emt 0:00:04]} 12. Bf4 {[%emt 0:05:00]} Bxf4 {[%emt 0:00:13]} 13. Nxf4 {[%emt 0:00:03]} Ne4 {[%emt 0:00:09]} 14. Qc1 {[%emt 0:00:19]} Ng5 {[%emt 0:00:06]} 15. Nxg5 {[%emt 0:02:45]} Qxg5 {[%emt 0:00:05]} 16. Bxh7+ {[%emt 0:00:10]} Kxh7 {[%emt 0:00:05] C06: French Tarrasch: 3...Nf6 4 e5 Nfd7 5 Bd3 main lines} 17. Nxe6 {[%emt 0:00:04]} Qf6 {[%emt 0:00:04]} 18. Nxf8+ {[%emt 0:00:03]} Qxf8 {[%emt 0:00:06]} 19. Qg5 {[%emt 0:04:26]} Qf5 {[%emt 0:00:11]} 20. Qh4+ {[%emt 0:05:16]} Kg8 {[%emt 0:00:15]} 21. Rfe1 {[%emt 0:00:46] [#]} {Predecessor:} Bd7 $146 {[%emt 0:00:18]} 22. f3 {[%emt 0:11:28]} Rf8 {[%emt 0:08:10]} 23. Rad1 {[%emt 0:04:40]} Rf6 {[%emt 0:17:27]} 24. Rd2 {[%emt 0:10:30]} (24. Qf2 {½-½ (40) Vachier Lagrave,M (2632)-Volkov,S (2633) Plovdiv 2008}) 24... Rh6 {[%emt 0:06:27]} 25. Qf2 {[%emt 0:05:56]} Nb4 {[%emt 0:02:19]} 26. g4 {[%emt 0:08:19]} Qf7 {[%emt 0:08:23]} 27. a3 {[%emt 0:03:50]} Nc6 {[%emt 0:00:18]} 28. Qg3 {[%emt 0:06:02]} Rf6 {[%emt 0:00:16]} 29. Kg2 {[%emt 0:10:29]} Rf4 {[%emt 0:00:12]} 30. Red1 {[%emt 0:00:07]} Ne7 {[%emt 0:07:36]} 31. h4 {[%emt 0:02:05]} Ng6 {[%emt 0:00:43]} 32. h5 {[%emt 0:02:40]} Rxf3 {[%emt 0:00:05]} 33. Qb8+ {[%emt 0:01:49]} Nf8 {[%emt 0:00:05]} 34. Kg1 {[%emt 0:06:22]} Bxg4 {[%emt 0:01:26]} 35. Rg2 {[%emt 0:00:48]} Rh3 {[%emt 0:03:16]} 36. Rdd2 {[%emt 0:05:04]} Bf3 {[%emt 0:00:23]} 37. Rh2 {[%emt 0:00:05]} Qxh5 {[%emt 0:00:31]} 38. Rdf2 {[%emt 0:01:04]} Qg5+ {[%emt 0:00:11]} 39. Rhg2 {[%emt 0:00:33]} Qc1+ {[%emt 0:00:10]} 40. Rf1 {[%emt 0:00:00]} Rh1+ {[%emt 0:00:00]} 0-1

[Event "HUN-ch U8-U18 2019"]
[Site "Balatonlelle"]
[Date "2019.06.21"]
[Round "1.13"]
[White "Torok, Csaba"]
[Black "Daroczi, Donat"]
[Result "0-1"]
[ECO "C11"]
[WhiteElo "1579"]
[BlackElo "2050"]
[Annotator "NA"]
[PlyCount "48"]
[EventDate "2019.06.21"]
[EventType "swiss"]
[EventCountry "HUN"]
[SourceTitle "playchess.com"]
[Source "ChessBase"]
[SourceQuality "1"]
[TimeControl "40/5400+30:1800+30"]

1. e4 {[%emt 0:00:07]} e6 {[%emt 0:00:03]} 2. d4 {[%emt 0:00:13]} d5 {[%emt 0:00:05]} 3. Nc3 {[%emt 0:00:25]} Nf6 {[%emt 0:00:04]} 4. e5 {[%emt 0:00:37]} Nfd7 {[%emt 0:00:03]} 5. f4 {[%emt 0:00:30]} c5 {[%emt 0:00:06]} 6. Nf3 {[%emt 0:00:22]} Nc6 {[%emt 0:00:03]} 7. Be3 {[%emt 0:00:48]} a6 {[%emt 0:00:20]} 8. Be2 {[%emt 0:13:17]} b5 {[%emt 0:00:05]} 9. a3 {[%emt 0:26:21]} Qb6 {[%emt 0:00:48]} 10. O-O {[%emt 0:04:38]} cxd4 {[%emt 0:00:25]} 11. Bf2 {[%emt 0:10:18]} Bc5 {[%emt 0:00:54]} 12. Na2 {[%emt 0:02:43]} a5 {[%emt 0:04:35]} 13. Nc1 {[%emt 0:06:17]} d3 {[%emt 0:07:26]} 14. Nxd3 {[%emt 0:03:24]} Bxf2+ {[%emt 0:00:43]} 15. Nxf2 {[%emt 0:00:15]} Ba6 {[%emt 0:00:25]} 16. Kh1 {[%emt 0:03:08]} O-O {[%emt 0:01:24]} 17. Bd3 {[%emt 0:03:37]} f6 {[%emt 0:00:39]} 18. exf6 {[%emt 0:07:17]} Nxf6 {[%emt 0:01:25]} 19. Ng5 {[%emt 0:04:00]} e5 {[%emt 0:02:01]} 20. fxe5 {[%emt 0:00:27]} Nxe5 {[%emt 0:00:14]} 21. Bxh7+ {[%emt 0:05:03]} Nxh7 {[%emt 0:02:34]} 22. Nxh7 {[%emt 0:00:17]} Rxf2 {[%emt 0:09:38]} 23. Qxd5+ {[%emt 0:04:00]} Kxh7 {[%emt 0:00:04]} 24. Qxa8 {[%emt 0:01:04]} Bb7 {[%emt 0:00:09]} 0-1

[Event "HUN-ch U8-U18 2019"]
[Site "Balatonlelle"]
[Date "2019.06.21"]
[Round "1.14"]
[White "Vanczak, Tamas"]
[Black "Kovacs, Gabor Etele"]
[Result "1-0"]
[ECO "D00"]
[WhiteElo "2311"]
[BlackElo "2062"]
[Annotator "NA"]
[PlyCount "85"]
[EventDate "2019.06.21"]
[EventType "swiss"]
[EventCountry "HUN"]
[SourceTitle "playchess.com"]
[Source "ChessBase"]
[SourceQuality "1"]
[TimeControl "40/5400+30:1800+30"]

1. d4 {[%emt 0:00:14]} d5 {[%emt 0:00:07]} 2. Bf4 {[%emt 0:00:18]} Nf6 {[%emt 0:00:15]} 3. e3 {[%emt 0:00:25]} c5 {[%emt 0:00:12]} 4. c3 {[%emt 0:00:17]} Nc6 {[%emt 0:00:21]} 5. Nd2 {[%emt 0:00:14]} Bg4 {[%emt 0:03:13]} 6. Qb3 {[%emt 0:02:38]} Qd7 {[%emt 0:02:59]} 7. dxc5 {[%emt 0:01:32]} e5 {[%emt 0:02:40]} 8. Bg3 {[%emt 0:00:47]} Bxc5 $11 {[%emt 0:06:23]} 9. Ngf3 {[%emt 0:00:23]} Bd6 {[%emt 0:10:11]} 10. Bb5 {[%emt 0:02:41]} Qc7 {[%emt 0:00:32]} 11. c4 {[%emt 0:09:20]} Bxf3 {[%emt 0:11:46]} 12. Nxf3 {[%emt 0:02:12]} Qa5+ {[%emt 0:09:25]} 13. Ke2 {[%emt 0:01:28]} O-O {[%emt 0:04:43]} 14. Rhd1 {[%emt 0:09:23]} dxc4 {[%emt 0:10:56]} 15. Bxc4 {[%emt 0:02:42]} Qc7 {[%emt 0:10:19]} 16. Rac1 {[%emt 0:02:10]} Na5 {[%emt 0:09:58]} 17. Bxf7+ {[%emt 0:03:06]} Qxf7 {[%emt 0:07:05]} 18. Qxf7+ {[%emt 0:00:09]} Rxf7 {[%emt 0:00:08]} 19. Rxd6 {[%emt 0:00:08]} e4 {[%emt 0:00:50]} 20. Ne5 {[%emt 0:02:46]} Re7 {[%emt 0:00:29]} 21. b4 {[%emt 0:01:39]} Nh5 {[%emt 0:00:42]} 22. Rd5 {[%emt 0:03:51]} Nxg3+ {[%emt 0:02:46]} 23. hxg3 {[%emt 0:00:09]} Rae8 {[%emt 0:00:43]} 24. Rxa5 {[%emt 0:00:57]} Rxe5 {[%emt 0:03:00]} 25. Rxe5 {[%emt 0:09:47]} Rxe5 {[%emt 0:00:02]} 26. Rc8+ {[%emt 0:00:12]} Kf7 {[%emt 0:00:05]} 27. Rc7+ {[%emt 0:00:06]} Re7 {[%emt 0:01:04]} 28. Rxe7+ {[%emt 0:00:45]} Kxe7 {[%emt 0:00:02]} 29. f3 {[%emt 0:00:38]} Ke6 {[%emt 0:00:13]} 30. fxe4 {[%emt 0:00:18]} b5 {[%emt 0:01:34]} 31. e5 {[%emt 0:02:09]} Kxe5 {[%emt 0:00:39]} 32. Kd3 {[%emt 0:00:09]} h5 {[%emt 0:00:33]} 33. e4 {[%emt 0:00:19]} g5 {[%emt 0:01:29]} 34. a3 {[%emt 0:00:27]} a6 {[%emt 0:00:06]} 35. Ke3 {[%emt 0:00:36]} Ke6 {[%emt 0:01:13]} 36. Kd4 {[%emt 0:00:20]} Kd6 {[%emt 0:00:14]} 37. e5+ {[%emt 0:00:21]} Ke7 {[%emt 0:00:19]} 38. Kd5 {[%emt 0:00:14]} Kd7 {[%emt 0:00:34]} 39. e6+ {[%emt 0:00:06]} Ke8 {[%emt 0:00:19]} 40. Kd6 {[%emt 0:00:00]} Kd8 {[%emt 0:00:00]} 41. g4 {[%emt 0:00:47]} h4 {[%emt 0:00:25]} 42. e7+ {[%emt 0:00:20]} Ke8 {[%emt 0:00:16]} 43. Ke6 {[%emt 0:00:18]} 1-0

[Event "HUN-ch U8-U18 2019"]
[Site "Balatonlelle"]
[Date "2019.06.21"]
[Round "1.14"]
[White "Pervai, Laszlo"]
[Black "Mathe, Gergely"]
[Result "1-0"]
[ECO "B24"]
[WhiteElo "2033"]
[BlackElo "1566"]
[Annotator "NA"]
[PlyCount "55"]
[EventDate "2019.06.21"]
[EventType "swiss"]
[EventCountry "HUN"]
[SourceTitle "playchess.com"]
[Source "ChessBase"]
[SourceQuality "1"]
[TimeControl "40/5400+30:1800+30"]

1. e4 {[%emt 0:00:06]} c5 {[%emt 0:00:34]} 2. Nc3 {[%emt 0:00:20]} Nc6 {[%emt 0:00:52]} 3. Bb5 {[%emt 0:00:18]} g6 {[%emt 0:02:09]} 4. Bxc6 {[%emt 0:00:18]} dxc6 {[%emt 0:00:18]} 5. f4 {[%emt 0:00:20]} Nf6 {[%emt 0:05:29]} 6. Nf3 {[%emt 0:01:15]} Bg7 {[%emt 0:00:48]} 7. O-O {[%emt 0:01:07]} O-O {[%emt 0:01:25]} 8. d3 {[%emt 0:00:42]} b5 {[%emt 0:06:39]} 9. Qe1 {[%emt 0:02:32]} b4 {[%emt 0:01:08]} 10. Ne2 {[%emt 0:01:20]} a5 {[%emt 0:02:12]} 11. Qh4 {[%emt 0:01:21]} h5 {[%emt 0:02:26]} 12. f5 {[%emt 0:01:59]} gxf5 {[%emt 0:08:57]} 13. e5 {[%emt 0:02:05]} Ng4 {[%emt 0:04:04]} 14. Qxh5 {[%emt 0:01:21]} Qd5 {[%emt 0:01:33]} 15. Nf4 {[%emt 0:03:15]} Qd8 {[%emt 0:02:34]} 16. h3 {[%emt 0:06:32]} Nh6 {[%emt 0:03:51]} 17. Be3 {[%emt 0:01:54]} Qb6 {[%emt 0:02:57]} 18. Ne6 {[%emt 0:05:28]} Bxe6 {[%emt 0:03:35]} 19. Bxh6 {[%emt 0:00:46]} Bxh6 {[%emt 0:00:39]} 20. Qxh6 {[%emt 0:00:07]} f6 {[%emt 0:01:00]} 21. Ng5 {[%emt 0:01:33]} c4+ {[%emt 0:02:53]} 22. Kh1 {[%emt 0:00:12]} fxg5 {[%emt 0:00:13]} 23. Qxe6+ {[%emt 0:00:08]} Kg7 {[%emt 0:01:11]} 24. Qxe7+ {[%emt 0:00:14]} Kg6 {[%emt 0:00:12]} 25. Qe6+ {[%emt 0:00:34]} Kh5 {[%emt 0:01:37]} 26. Rxf5 {[%emt 0:02:48]} Rxf5 {[%emt 0:01:18]} 27. Qxf5 {[%emt 0:00:08]} Rh8 {[%emt 0:00:07]} 28. Qf3+ {[%emt 0:03:17]} 1-0